Cogmind - Beta 13 @@@ ROGUE MODE // 2024.04.19 @ 23:31:18 Player: Pepsi Result: Destroyed by G-34 Mercenary with Small Laser Performance ------------- Evolutions (0) 0 Regions Visited (1) 200 Robots Destroyed (12) 60 Value Destroyed (216) 216 Prototype IDs (0) 0 Alien Tech Used (0) 0 Bonus (0) 0 TOTAL SCORE: 476 Bonus ------- None Cogmind --------- Core Integrity 0/250 Matter 300/300 Energy 175/250 System Corruption 2% Temperature Cool (6) Movement Core (200) Ox3 Location -10/Materials Parts ------- > --- POWER (1) -------- Ion Engine > --- PROPULSION (2) --- (None) > --- UTILITY (2) ------ Small Storage Unit Utility Shielding > --- WEAPON (2) ------- Light Assault Rifle > --- INVENTORY (8) ---- Aluminum Leg Wheel Heat Sink Hacking Suite Peak State ------------ > --- POWER ------------ Ion Engine > --- PROPULSION ------- Wheel Compact Wheel > --- UTILITY ---------- Small Storage Unit Utility Shielding > --- WEAPON ----------- Medium Laser Medium Laser > --- INVENTORY -------- Ion Engine Aluminum Leg Aluminum Leg Small Laser [Rating: 7] Favorites ----------- Power Ion Engine Engine Ion Engine Propulsion Aluminum Leg Leg Aluminum Leg Wheel Wheel Utility Utility Shielding Device Heat Sink Storage Small Storage Unit Protection Utility Shielding Weapon Medium Laser Energy Gun Medium Laser Ballistic Gun Light Assault Rifle Build | -11 -10 ------- Run | Yrd Mat Slots Evolved . | . . Power . | . . Propulsion . | . . Utility . | . . Weapon . | . . Parts Attached 17 | 6 11 Power 2 | 1 1 Engine 2 | 1 1 Core . | . . Reactor . | . . Propulsion 5 | 2 3 Treads . | . . Leg 3 | . 3 Wheel 2 | 2 . Hover . | . . Flight . | . . Utility 5 | 1 4 Device 1 | . 1 Storage 3 | 1 2 Processor . | . . Hackware . | . . Protection 1 | . 1 Artifact . | . . Weapon 5 | 2 3 Energy Gun 4 | 2 2 Energy Cannon . | . . Ballistic Gun 1 | . 1 Ballistic Cannon . | . . Launcher . | . . Special Weapon . | . . Impact Weapon . | . . Slashing Weapon . | . . Piercing Weapon . | . . Special Melee Weapon . | . . Unidentified Prototypes . | . . Parts Lost 7 | . 7 Power 1 | . 1 Propulsion 3 | . 3 Utility . | . . Weapon 3 | . 3 Highest Loss Streak 3 | . 3 To Critical Strikes . | . . Average Slot Usage (%) 92 | . 92 Engine 12 | . 12 Leg 17 | . 17 Wheel 9 | . 9 Device 6 | . 6 Storage 6 | . 6 Protection 11 | . 11 Energy Gun 26 | . 26 Naked Turns . | . . Heaviest Build 15 | 13 15 Greatest Support 26 | 26 26 Greatest Overweight (x) 4 | 4 3 Average Overweight (x) . | . . Largest Inventory Capacity 8 | 8 8 Average Capacity 6 | 7 6 Most Carried 6 | 4 6 Average Carried 4 | 2 4 Final Capacity 8 | 8 8 Final Carried 4 | 4 4 Class Distribution -------------------- 100% | Mutant Dominant Class ---------------- Mutant | -10/Materials Resources | -11 -10 ----------- Run | Yrd Mat Matter Collected 365 | 205 160 Remotely . | . . Salvage Created 287 | . 287 Parts 19 | . 19 Haulers Intercepted . | . . Recyclers Shooed . | . . Parts Field Recycled . | . . Retrieved Matter . | . . Parts Self-Destructed . | . . Prevented . | . . Kills | -11 -10 ------- Run | Yrd Mat Combat Hostiles Destroyed 8 | . 8 Melee 1 | . 1 Guns 6 | . 6 Classes Destroyed 4 | . 4 Operator 2 | . 2 Watcher 2 | . 2 Swarmer 5 | . 5 Grunt 3 | . 3 Best Kill Streak 3 | . 3 Combat Bots Only 3 | . 3 Max Kills in Single Turn 1 | . 1 Gunslinging . | . . Exploded . | . . Melee 1 | . 1 Uniques/NPCs Destroyed . | . . Combat | -11 -10 -------- Run | Yrd Mat Hostile Shots Fired 121 | . 121 Missed 30 | . 30 Damage Taken 879 | . 879 Core 254 | . 254 Absorbed by Shields . | . . Redirected to Shielding 15 | . 15 Core Remaining (%) 100 | 100 . Volleys Fired 60 | . 60 Largest 2 | . 2 Hottest 100 | . 100 Shots Fired 99 | . 99 Gun 99 | . 99 Cannon . | . . Launcher . | . . Special . | . . Kinetic . | . . Thermal 99 | . 99 Explosive . | . . Electromagnetic . | . . Robot Hit Streak 10 | . 10 Robot Miss Streak 3 | . 3 Penetration Max . | . . Secondary Targets 1 | . 1 Max Gunslinging Chain 1 | . 1 Shots Hit Robots 48 | . 48 Core Hits 20 | . 20 Critical Kills . | . . Critical Parts Destroyed . | . . Critical Strikes 5 | . 5 Burn 5 | . 5 Melee Attacks . | . . Impact . | . . Slashing . | . . Piercing . | . . Sneak Attacks . | . . Combat Hostiles . | . . Follow-up Attacks . | . . Damage Inflicted 658 | . 658 Guns 646 | . 646 Cannons . | . . Explosions . | . . Melee . | . . Ramming 12 | . 12 Kinetic . | . . Thermal 646 | . 646 Explosive . | . . Electromagnetic . | . . Impact . | . . Slashing . | . . Piercing . | . . Highest Corruption 2 | . 2 Average Corruption 2 | . 2 Corruption Purged . | . . Corruption Blocked . | . . Effects 9 | . 9 Message Errors 3 | . 3 Matter Fused 2 | . 2 Energy Discharges 1 | . 1 Data Loss (minor) 1 | . 1 Data Loss (major) 1 | . 1 Weapon Failures 1 | . 1 Overload Shots . | . . Overflow Damage . | . . Projectiles . | . . Explosions . | . . Melee . | . . Knockbacks . | . . Impact . | . . Kinetic . | . . Secondary . | . . Self-Inflicted Damage 3 | . 3 Shots . | . . Rammed 5 | . 5 Targets Rammed 9 | . 9 Kicked 4 | . 4 Crushed . | . . Highest Temperature 234 | . 234 Average Temperature 73 | . 73 Received Heat Transfer 252 | . 252 Siege Activations . | . . Robots Corrupted . | . . Combat Hostiles . | . . Parts Fried . | . . Impact Corruptions . | . . Robots Melted 1 | . 1 Combat Hostiles 1 | . 1 Parts Melted 2 | . 2 Heat Transferred 2258 | . 2258 Parts Sabotaged . | . . Parts Stolen . | . . Parts Stripped . | . . Power Chain Reactions . | . . Alert | -11 -10 ------- Run | Yrd Mat Peak Influence 170 | . 170 Initial . | . . Average 70 | . 80 Maximum Alert Level . | . . Low Security (%) 100 | 100 100 Level 1 . | . . Level 2 . | . . Level 3 . | . . Level 4 . | . . Level 5 . | . . High Security . | . . Max Security . | . . Squads Dispatched 2 | . 2 Investigation . | . . Extermination . | . . Reinforcement 2 | . 2 Assault . | . . Garrison . | . . Intercept . | . . Searches Triggered . | . . Construction Impeded . | . . Haulers Reinforced . | . . Active Scanning Responses . | . . Cargo Convoy Interrupts . | . . Stealth | -11 -10 --------- Run | Yrd Mat Distress Signals 1 | . 1 Communications Jammed . | . . Distress Signals . | . . Times Spotted 23 | . 23 Peak Tracking Total 6 | . 6 Tactical Retreats 2 | . 2 Traps | -11 -10 ------- Run | Yrd Mat Traps Triggered 1 | . 1 Indirectly . | . . Trap Hack Attempts . | . . Triggered . | . . Disarmed . | . . Reprogrammed . | . . Reused . | . . Traps Extracted . | . . Installed . | . . Triggered . | . . Machines | -11 -10 ---------- Run | Yrd Mat Machines Disabled . | . . Max in Single Turn . | . . Machines Repaired . | . . Machines Dismantled . | . . Machines Sabotaged . | . . Overloaded Fab Kills . | . . Hacking | -11 -10 --------- Run | Yrd Mat Machines Accessed 1 | . 1 Terminals 1 | . 1 Fabricators . | . . Repair Stations . | . . Recycling Units . | . . Scanalyzers . | . . Garrison Access . | . . Total Hacks 2 | . 2 Successful 2 | . 2 Failed . | . . Catastrophic . | . . Database Lockouts . | . . Manual 3 | . 3 Terminals 2 | . 2 Fabricators . | . . Repair Stations . | . . Recycling Units . | . . Scanalyzers . | . . Garrison Access . | . . Terminal Hacks 2 | . 2 Locate Traps 1 | . 1 Zone Layout 1 | . 1 Fabricator Hacks . | . . Repair Station Hacks . | . . Recycling Unit Hacks . | . . Scanalyzer . | . . Garrison Access Hacks . | . . Unauthorized Hacks . | . . Terminals . | . . Fabricators . | . . Repair Stations . | . . Recycling Units . | . . Scanalyzers . | . . Garrison Access . | . . Data Cores Recovered . | . . Used . | . . Hacking Detections 1 | . 1 Full Trace Events . | . . Feedback Events . | . . Feedback Blocked . | . . Robot Schematics Acquired . | . . Robots Built . | . . Authchips . | . . Time . | . . Total Robot Build Rating . | . . Part Schematics Acquired . | . . Parts Built . | . . Authchips . | . . Time . | . . Total Part Build Rating . | . . Parts Repaired . | . . Time . | . . Parts Recycled . | . . Recycled Matter . | . . Retrieved Matter . | . . Retrieved Components . | . . Parts Scanalyzed . | . . Part Schematics Acquired . | . . Parts Damaged . | . . Bothacking | -11 -10 ------------ Run | Yrd Mat Used RIF Installer . | . . Robots Hacked . | . . Non-combat . | . . Combat . | . . Robot Hacks Applied . | . . Relay Couplers Released . | . . Fabnet Peak Effective % . | . . Robots Rewired . | . . Allies Hacked . | . . Hacks Repelled . | . . Allies | -11 -10 -------- Run | Yrd Mat Total Allies . | . . Largest Group . | . . Highest-Rated Group . | . . Highest-Rated Ally . | . . Total Orders . | . . Ally Attacks . | . . Total Damage . | . . Kills . | . . Allies Corrupted . | . . Allies Melted . | . . Intel | -11 -10 ------- Run | Yrd Mat Robot Analysis Total . | . . Derelict Logs Recovered . | . . Drone Launches . | . . Drone Recoveries . | . . Exploration | -11 -10 ------------- Run | Yrd Mat Turns Passed 954 | 120 834 Spaces Moved 690 | 92 598 Core 41 | 39 2 Treads . | . . Legs 323 | . 323 Wheels 326 | 53 273 Hover . | . . Flight . | . . Fastest Speed 50 | 50 80 Average Speed 107 | 115 106 Slowest Speed 250 | 250 200 Overloaded Moves . | . . Propulsion Burnouts . | . . Robots Hopped . | . . Cave-ins Triggered . | . . Exploration Rate (%) 35 | 6 64 Regions Visited 1 Branch Regions . Pre-discovered Areas . | . . Known Exits Taken . | . . Unknown Exits Taken 1 | 1 . Scrap Searched . | . . Spaces Dug . | . . Terrain Destroyed . | . . Melee . | . . Projectile . | . . AOE . | . . Terrain Rammed . | . . Walls Destroyed . | . . Machines Disabled . | . . Actions | -11 -10 --------- Run | Yrd Mat Total 792 | 103 689 Wait 8 | . 8 Move 689 | 91 598 Hop . | . . Pick Up 7 | 6 1 Fast Attach 7 | 4 3 Attach 6 | 2 4 Detach 2 | . 2 Swap 4 | . 4 Drop . | . . Fire 60 | . 60 Melee . | . . Ram 5 | . 5 Kick 4 | . 4 Crush . | . . Escape Stasis . | . . Rewire . | . . Trap . | . . Miscellaneous . | . . Route ------- -11/Scrapyard -10/Materials (discovered 3 exits: [*Mat x2] / [*Min]) History --------- Turn | Location | Event 51 | -11/Scrapyard | Discovered new exit (range 15) 121 | -11/Scrapyard | Entered Materials 309 | -10/Materials | Build established: Mutant 328 | -10/Materials | Discovered new exit (range 12) 368 | -10/Materials | Discovered new exit (range 9) 606 | -10/Materials | Discovered new exit (range 3) 880 | -10/Materials | Core integrity fell below 50% 936 | -10/Materials | Core integrity fell below 20% 955 | -10/Materials | Destroyed by G-34 Mercenary with Small Laser Last Messages --------------- 00857_ K-01 Serf cleans the Terminal. 00857_ Destroyed Flight Unit. 00858_ S-10 Pest heat damages core (-2). 00889_ Med. Laser destroyed. 00908_ System corrupted: Sml. Laser failed to cycle. 00924_ Kicked S-10 Pest out of the way. 00925_ S-10 Pest destroyed. 00927_ Kicked S-10 Pest out of the way. 00928_ Aluminum Leg destroyed. 00931_ Kicked S-10 Pest. 00933_ Aluminum Leg destroyed. 00933_ Slammed into S-10 Pest. 00936_ S-10 Pest destroyed. [Achievement: Fist Fight] 00947_ Sml. Laser destroyed. 00948_ Acquired Lgt. Assault Rifle. 00950_ Acquired 15 matter. 00952_ Slammed into G-34 Mercenary. 00954_ K-01 Serf collects debris. 00954_ Slammed into G-34 Mercenary. Map ----- +----------------------------------------------------+ | ?????????? #?????????????????????? | | ?????????? #?????????????????????? | | ??????????# #?????????????????????? | | ??????????# #?????????????????????? | | ??????????# ######????????????????? | | ??????????# ??????? ?????? | | ??????????+ ???????? ?????? | | ??????????# ! ????????? ?????? | | ???????????# #?????????? ?????? | | ???????????# """ #??????????# #?????? | | ???????????# """ #??????????# #?????? | | ???????????# """ #??????????# #?????? | | ???????????# #??????????# #?????? | | ???????????# #??????????# #?????? | | ???????????# ! #??????????# #?????? | | ?????????### #########??????????# #?????? | | ?????????# #??######????????### %#?????? | | ?????????# #? ?????????# ####### | | ?????????# # """ #????????# T | | ?????????# + """ #????????# "" | | ?????????# # """ #????????# | | ?????????# !#?? ?###?????# ####### | | #==??????# k##########T######## ##?????? | | # ????# g k #??????? | | # ??# %%%%= #??????? | | ? """ # g@% % #??????? | | ? """ + #####/############# #??????? | | ? """ # #?# #?????# #??????? | | # ??# #?# """ """ #?????# #??????? | | ?######### #?# "R """ #?????# #??????? | | ?????# #?# """ """ #?????# #??????? | | ?????# < #?# #?????# #??????? | | ?????# #?# #?????# #??????? | | ???######+###### #?????# ######## | | ???# % # #?????# # | | ???# ! ###########?????# # """ | | ???# #???????????????# # """ | | ???# """ """ #???????????????# # """ | | ???# """"""""" ######??????????# # = | | ???# """"" " # ############ ######## | | ???# # ## ! # | | ???####/######## ## """ # | | ??????# # # ## | """ # | | ??????# # """# ## """ # | | ??????# # """# ##"" + | | ####### # """# ##"Y # # | | # + + # ##"" # ###### # | | # "" # # # ## # #????# # | | # "" # ####+####+#####+######## #????# # | | #! T" # % #????# # | +----------------------------------------------------+ Best States ------------- Heat Dissipation 35 Energy Generation 10 Energy Capacity 250 Matter Stores 300 Matter Capacity 300 Sight Range 16 Terrain Scan Density 10 Utility Shielding 33 Evasion (%) 55 Item Schematics ----------------- None Robot Schematics ------------------ None Fabricated ------------ Nothing Alien Tech Used ----------------- None Achievements -------------- Fist Fight Challenges ------------ None Game ------ Seed RagnarokRecyclingPenetrator Manual? 0 Play Time 00:10:34 Cumulative 4.8 hours Start 2024.04.19 @ 23:16:10 End 2024.04.19 @ 23:31:18 Sessions 1 Manual Loads 0 Difficulty Rogue Special Mode None Game No. 10 Rogue 10 Adventurer 0 Explorer 0 Win Type - Total 0 Types 0/0/0/0/0/0/0/0/0 Lore% 10 Gallery% 9 Achievement% 10 Wizard Run 0 Options --------- Layout 0 ASCII 0 Keyboard 1 Movement Vi Keybinds 0 Fullscreen 1 Font 24/Tamsyn Map View 76x50 Zoom Use 0% Tactical HUD 1 Map Filters NONE Filters NONE Steam 1 RUN: ea979774-a20e-4c50-9fee-e9525b36b1ed